bitfinex/quotes_SOLUSD_20250917
["timestamp","ask_amount","ask_price","bid_price","bid_amount"]
[1758149315583,0.9,244.6,244.59,0.40884745]
[1758149315763,0.9,244.6,244.54,1.69606951]
[1758149316079,0.9,244.6,244.56,1.69606951]
[1758149316287,0.9,244.6,244.57,32.46]
[1758149316651,4.28832902,244.6,244.57,32.46]
[1758149316858,0.2,244.6,244.57,34.15606951]
[1758149317067,0.2,244.6,244.57,32.46]
[1758149317279,0.9,244.6,244.58,32.46]
[1758149317465,0.2,244.6,244.59,32.46]
[1758149319883,0.2,244.6,244.59,38.2445441]
[1758149320057,0.2,244.6,244.59,36.54847459]
[1758149320264,0.2,244.6,244.59,38.2445441]
[1758149321277,0.2,244.6,244.59,36.54847459]
[1758149322389,0.2,244.6,244.59,37.23847459]
[1758149322694,0.2,244.6,244.59,51.11839174]
[1758149324093,1e-08,244.6,244.59,51.11839174]
[1758149324383,1e-08,244.6,244.59,52.81446125]
[1758149325195,1e-08,244.6,244.59,51.11839174]
[1758149325566,1e-08,244.6,244.59,52.81446125]
[1758149325763,1e-08,244.6,244.59,5.06279773]
[1758149325963,1e-08,244.6,244.59,31.92670567]
[1758149326168,1e-08,244.6,244.59,62.50847459]
[1758149327374,1e-08,244.6,244.59,64.2045441]
[1758149328784,1e-08,244.6,244.59,32.42]
[1758149329205,0.70000001,244.6,244.59,32.42]
[1758149329990,0.70000001,244.6,244.58,26.0]
[1758149330172,1e-08,244.6,244.59,32.42]
[1758149330887,0.70000001,244.6,244.55,0.03]
[1758149331184,0.7,244.59,244.56,32.42]
[1758149331586,0.7,244.59,244.55,4.11913099]
[1758149331765,0.7,244.59,244.57,32.42]
[1758149331967,1e-08,244.6,244.58,4.08864175]
[1758149332187,1e-08,244.6,244.59,32.42]
[1758149333890,0.70000001,244.6,244.59,32.42]
[1758149334085,1e-08,244.6,244.59,32.42]
[1758149334699,1e-08,244.6,244.59,36.50847459]
[1758149335465,0.70000001,244.6,244.59,32.42]
[1758149335978,0.70000001,244.6,244.59,32.45]
[1758149336489,0.70000001,244.6,244.59,0.03]
[1758149336672,0.70000001,244.6,244.59,32.45]
[1758149337198,1e-08,244.6,244.59,32.45]
[1758149337390,1e-08,244.6,244.59,36.53847459]
[1758149337900,1e-08,244.6,244.59,32.45]
[1758149338482,1e-08,244.6,244.59,35.77871461]
[1758149338690,1e-08,244.6,244.59,50.06747921]
[1758149339676,0.06,244.62,244.61,39.59559401]
[1758149339869,0.06,244.62,244.61,75.07312265]
[1758149340193,0.06,244.63,244.62,0.28432314]
[1758149340374,0.06,244.63,244.62,17.8376057]
[1758149340576,0.06,244.63,244.62,14.55991715]
[1758149341784,0.06,244.63,244.62,18.64789033]
[1758149341999,0.06,244.63,244.62,30.37229632]
[1758149342180,0.06,244.63,244.62,65.44101093]
[1758149342379,0.06,244.63,244.62,62.79229632]
[1758149342776,0.06,244.63,244.62,65.44101093]
[1758149343770,0.06,244.63,244.62,26.0]
[1758149343966,0.06,244.63,244.62,35.06871461]
[1758149344377,0.06,244.63,244.62,32.42]
[1758149344584,0.06,244.63,244.62,35.06871461]
[1758149345593,0.06,244.63,244.62,39.15668779]
[1758149346592,0.06,244.63,244.62,36.50797318]
[1758149346771,0.06,244.63,244.62,39.15668779]
[1758149346977,0.06,244.63,244.62,35.06871461]
[1758149347400,0.06,244.63,244.62,39.15668779]
[1758149349503,0.06,244.63,244.62,35.06871461]
[1758149350301,0.06,244.63,244.62,39.15668779]
[1758149351703,0.06,244.63,244.62,32.73668779]
[1758149351905,0.06,244.63,244.62,65.15668779]
[1758149352278,0.06,244.63,244.62,63.21797318]
[1758149352580,0.06,244.63,244.62,40.15101093]
[1758149353591,0.06,244.63,244.62,54.15540225]
[1758149354203,0.06,244.63,244.62,54.18540225]
[1758149354997,0.06,244.63,244.62,53.47540225]
[1758149355198,0.06,244.63,244.62,53.06660494]
[1758149355500,0.06,244.63,244.62,32.76668779]
[1758149355707,0.06,244.63,244.62,65.18668779]
[1758149356400,0.75,244.63,244.62,26.03]
[1758149356606,0.75,244.63,244.62,32.43]
[1758149356808,0.75,244.63,244.62,58.43]
[1758149357311,0.75,244.63,244.62,32.43]
[1758149357614,0.75,244.63,244.62,36.51797318]
[1758149357815,0.75,244.63,244.62,39.16668779]
[1758149357999,0.75,244.63,244.62,32.43]
[1758149358318,0.75,244.63,244.62,35.07871461]
[1758149358625,0.75,244.63,244.62,39.16668779]
[1758149359114,0.06,244.63,244.62,39.16668779]
[1758149359614,0.75,244.63,244.62,39.16668779]
[1758149360318,0.75,244.63,244.62,32.43]
[1758149361030,0.75,244.63,244.62,36.51797318]
[1758149361395,0.06,244.63,244.62,36.51797318]
[1758149361824,0.06,244.63,244.62,39.87668779]
[1758149362208,0.06,244.63,244.62,41.51358341]
[1758149362412,0.06,244.63,244.62,38.8648688]
[1758149362612,0.06,244.63,244.62,55.80229787]
[1758149363216,0.06,244.63,244.62,9.80670386]
[1758149363430,0.06,244.63,244.62,42.20670386]
[1758149366114,0.06,244.63,244.62,55.80229787]
[1758149367626,0.06,244.63,244.62,134.70229787]
[1758149367813,0.06,244.63,244.62,134.29350056]
[1758149369226,0.06,244.63,244.62,133.58350056]
[1758149369522,0.06,244.63,244.62,131.64478595]
[1758149369729,0.06,244.63,244.62,134.29350056]
[1758149369918,0.06,244.63,244.62,133.58350056]
[1758149374331,0.06,244.63,244.62,55.35350056]
[1758149374332,1e-08,244.63,244.62,55.35350056]
[1758149374534,1e-08,244.64,244.63,13.59559401]
[1758149374833,1e-08,244.64,244.63,93.16559401]
[1758149375027,1e-08,244.64,244.63,95.81430862]
[1758149375222,1e-08,244.64,244.63,97.45086939]
[1758149376231,0.67000001,244.64,244.63,87.27308145]
[1758149376433,0.67000001,244.64,244.63,119.67308145]
[1758149378123,0.67000001,244.64,244.63,1.63656077]
[1758149378318,0.67000001,244.64,244.63,32.38]
[1758149380818,0.67000001,244.64,244.63,58.38]
[1758149382734,4.75764883,244.64,244.62,0.03]
[1758149383044,0.67000001,244.64,244.63,32.38]
[1758149383545,0.67000001,244.64,244.62,0.03]
[1758149383734,4.75766609,244.64,244.63,32.38]
[1758149383942,0.67000001,244.64,244.63,32.38]
[1758149384335,4.75763898,244.64,244.63,32.38]
[1758149384847,4.75763898,244.64,244.62,0.03]
[1758149385023,4.75763898,244.64,244.63,32.38]
[1758149385746,0.67000001,244.64,244.63,32.38]
[1758149387146,4.75763898,244.64,244.63,32.38]
[1758149387332,0.67000001,244.64,244.63,32.38]
[1758149387729,4.75763898,244.64,244.63,32.38]
[1758149387929,4.75763898,244.64,244.62,0.03]
[1758149388134,7.40635359,244.64,244.62,32.41]
[1758149388335,0.67,244.63,244.62,32.41]
[1758149388530,0.67,244.63,244.62,0.03]
[1758149391245,7.40652068,244.63,244.62,0.03]
[1758149392262,21.00211469,244.63,244.62,0.03]
[1758149393839,21.28643783,244.63,244.62,0.03]
[1758149395157,21.00211469,244.63,244.62,0.03]
[1758149395740,20.04898316,244.63,244.62,0.03]
[1758149396255,6.45338915,244.63,244.62,0.03]
[1758149397060,4.75780607,244.63,244.62,0.03]
[1758149397363,1e-08,244.64,244.62,0.03]
[1758149400749,1e-08,244.64,244.63,1.69558308]
[1758149400953,1e-08,244.64,244.62,2.41558308]
[1758149401153,1e-08,244.64,244.62,0.03]
[1758149401355,1e-08,244.64,244.62,32.41]
[1758149401867,1e-08,244.64,244.62,33.1]
[1758149402071,1e-08,244.64,244.63,0.69]
[1758149402574,1e-08,244.64,244.62,36.49796759]
[1758149402868,1e-08,244.64,244.63,1.69558308]
[1758149403170,1e-08,244.64,244.63,6.48338915]
[1758149405548,1e-08,244.64,244.63,38.86338915]
[1758149405978,1e-08,244.64,244.63,37.16780607]
[1758149406152,1e-08,244.64,244.63,38.86338915]
[1758149406548,1e-08,244.64,244.63,39.14771229]
[1758149407570,1e-08,244.64,244.63,40.78440698]
[1758149408368,1e-08,244.64,244.63,8.40440698]
[1758149408668,1e-08,244.64,244.63,40.76440698]
[1758149409169,1e-08,244.64,244.63,87.30440698]
[1758149409371,1e-08,244.64,244.63,119.66440698]
[1758149410271,1e-08,244.64,244.63,133.26000099]
[1758149411896,0.06,244.66,244.65,39.59559401]
[1758149412175,0.06,244.66,244.65,15.57550023]
[1758149412377,0.06,244.66,244.65,16.27550023]
[1758149412584,0.06,244.66,244.65,17.91186015]
[1758149413286,1e-08,244.66,244.65,54.78166436]
[1758149413468,1e-08,244.66,244.65,87.14166436]
[1758149413773,1e-08,244.66,244.65,80.35933204]
[1758149413960,1e-08,244.66,244.65,80.76807922]
[1758149414363,1e-08,244.66,244.65,78.66374896]
[1758149414675,1e-08,244.66,244.65,80.35933204]
[1758149415372,1e-08,244.66,244.65,78.66374896]
[1758149415572,1e-08,244.66,244.65,80.35933204]
[1758149416061,1e-08,244.66,244.65,78.66374896]
[1758149416269,1e-08,244.66,244.65,80.35933204]
[1758149417961,1e-08,244.66,244.65,32.00815495]
[1758149418170,1e-08,244.66,244.65,66.04373803]
[1758149420379,1e-08,244.66,244.65,80.74807922]
[1758149420956,1e-08,244.66,244.65,159.64807922]
[1758149421160,1e-08,244.66,244.65,158.53933204]
[1758149421666,0.68000001,244.66,244.65,84.62383181]
[1758149421863,0.68000001,244.66,244.65,86.31941489]
[1758149422067,1e-08,244.66,244.65,118.65941489]
[1758149422988,1e-08,244.66,244.65,119.35941489]
[1758149423169,1e-08,244.66,244.65,118.65941489]
[1758149425265,1e-08,244.66,244.65,119.35941489]
[1758149425490,1e-08,244.66,244.65,117.66383181]
[1758149425796,0.2,244.67,244.66,13.87991715]
[1758149425974,0.2,244.67,244.66,16.27550023]
[1758149426173,0.2,244.67,244.66,20.36280506]
[1758149426690,0.2,244.67,244.66,21.99909804]
[1758149427072,0.2,244.67,244.66,54.33909804]
[1758149428985,0.2,244.67,244.66,54.74782852]
[1758149430397,0.2,244.67,244.66,54.04782852]
[1758149431684,0.2,244.67,244.66,54.02782852]
[1758149431890,0.2,244.67,244.66,7.70350403]
[1758149432089,0.2,244.67,244.66,40.02350403]
[1758149432599,0.88,244.67,244.66,40.02350403]
[1758149433493,0.88,244.67,244.66,6.00792095]
[1758149433698,0.88,244.67,244.66,39.73918089]
[1758149435689,0.88,244.67,244.66,7.41918089]
[1758149435893,0.88,244.67,244.66,29.33187606]
[1758149436195,0.88,244.67,244.66,61.65187606]
[1758149436392,0.88,244.67,244.66,65.73918089]
[1758149438799,0.88,244.67,244.66,29.33187606]
[1758149438990,0.88,244.67,244.66,33.95629298]
[1758149439390,0.88,244.67,244.66,27.63629298]
[1758149439589,0.88,244.67,244.66,33.95629298]
[1758149439791,0.88,244.67,244.66,32.32]
[1758149440308,0.88,244.67,244.66,32.35]
[1758149441590,0.88,244.67,244.66,33.98676167]
[1758149441787,0.2,244.67,244.66,35.68234475]
[1758149441986,0.2,244.67,244.66,39.76964958]
[1758149442186,0.88,244.67,244.66,39.76964958]
[1758149442696,0.88,244.67,244.66,34.04558308]
[1758149442999,0.88,244.67,244.66,32.35]
[1758149443199,0.88,244.67,244.66,34.04558308]
[1758149443504,0.88,244.67,244.66,38.13288791]
[1758149443889,0.2,244.67,244.66,38.13288791]
[1758149444093,0.2,244.67,244.66,54.37838814]
[1758149444401,0.2,244.67,244.66,59.46513738]
[1758149445386,0.06,244.7,244.69,39.59559401]
[1758149445590,0.06,244.7,244.69,73.99985746]
[1758149445913,0.06,244.7,244.69,78.75666117]
[1758149446111,1e-08,244.7,244.69,83.12578623]
[1758149446599,1e-08,244.7,244.69,86.41752192]
[1758149446786,1e-08,244.7,244.69,86.00884155]
[1758149448419,1e-08,244.7,244.69,53.70884155]
[1758149448604,1e-08,244.7,244.69,86.41752192]
[1758149448795,1e-08,244.7,244.69,86.00884155]
[1758149449921,1e-08,244.7,244.69,82.04710586]
[1758149450095,1e-08,244.7,244.69,60.27267263]
[1758149450290,1e-08,244.7,244.69,94.26825571]
[1758149450715,1e-08,244.7,244.69,173.16825571]
[1758149451411,1e-08,244.7,244.69,171.47267263]
[1758149451713,1e-08,244.7,244.69,173.16825571]
[1758149451903,1e-08,244.7,244.69,140.86825571]
[1758149452211,1e-08,244.7,244.69,173.16825571]
[1758149452715,0.68000001,244.7,244.69,159.28833856]
[1758149452890,1e-08,244.7,244.69,159.28833856]
[1758149453095,1e-08,244.7,244.69,173.16825571]
[1758149453609,1e-08,244.7,244.69,173.83825571]
[1758149455205,1e-08,244.7,244.69,173.16825571]
[1758149456401,1e-08,244.7,244.69,173.83825571]
[1758149456915,1e-08,244.7,244.69,140.86825571]
[1758149457111,1e-08,244.7,244.69,173.14825571]
[1758149457819,1e-08,244.7,244.69,174.09721367]
[1758149459017,1e-08,244.7,244.69,174.12721367]
[1758149459418,1e-08,244.7,244.69,171.48267263]
[1758149459608,1e-08,244.7,244.69,174.12721367]
[1758149460726,1e-08,244.7,244.69,141.84721367]
[1758149460895,1e-08,244.7,244.69,174.12721367]
[1758149461310,0.67000001,244.7,244.69,81.63161966]
[1758149461502,0.67000001,244.7,244.69,49.35161966]
[1758149461703,0.67000001,244.7,244.69,46.42275548]
[1758149461929,0.67000001,244.7,244.69,81.34729652]
[1758149462724,1e-08,244.7,244.69,81.63161966]
[1758149463102,1e-08,244.7,244.69,82.04030003]
[1758149463623,1e-08,244.7,244.69,95.63589404]
[1758149463822,1e-08,244.7,244.69,62.94721367]
[1758149464027,1e-08,244.7,244.69,95.63589404]
[1758149464231,1e-08,244.7,244.69,95.22721367]
[1758149464936,1e-08,244.7,244.69,60.30267263]
[1758149465226,0.68000001,244.7,244.69,95.22721367]
[1758149465723,0.68000001,244.7,244.69,49.35161966]
[1758149465901,0.68000001,244.7,244.69,81.63161966]
[1758149466209,1e-08,244.7,244.69,81.63161966]
[1758149466604,1e-08,244.7,244.69,49.06729652]
[1758149466806,0.68000001,244.7,244.69,49.06729652]
[1758149467027,0.68000001,244.7,244.69,81.34729652]
[1758149467214,1e-08,244.7,244.69,81.34729652]
[1758149467528,0.68000001,244.7,244.69,81.34729652]
[1758149468105,0.68000001,244.7,244.69,49.06729652]
[1758149468322,0.68000001,244.7,244.69,81.32729652]
[1758149468509,0.68000001,244.7,244.69,78.68275548]
[1758149468707,0.68000001,244.7,244.69,81.32729652]
[1758149469112,1e-08,244.7,244.69,81.61161966]
[1758149469423,1e-08,244.7,244.69,95.20721367]
[1758149471210,1e-08,244.7,244.69,93.28267263]
[1758149471414,0.06,244.73,244.72,26.28432314]
[1758149471620,0.06,244.73,244.72,58.54432314]
[1758149471829,0.06,244.73,244.72,61.18886418]
[1758149472023,0.06,244.73,244.72,62.82488945]
[1758149472429,1e-08,244.75,244.74,0.28432314]
[1758149472724,1e-08,244.75,244.74,114.08886418]
[1758149473110,1e-08,244.75,244.74,126.35805012]
[1758149473310,1e-08,244.75,244.74,130.4440189]
[1758149473625,0.68000001,244.75,244.74,130.15969576]
[1758149473822,1e-08,244.75,244.74,130.4440189]
[1758149474625,0.68000001,244.75,244.74,130.4440189]
[1758149475827,0.68000001,244.75,244.74,130.15969576]
[1758149476011,0.68000001,244.75,244.74,156.15969576]
[1758149476327,0.68000001,244.75,244.74,77.25969576]
[1758149476511,0.68000001,244.75,244.74,74.61515472]
[1758149476707,0.68000001,244.75,244.74,77.25969576]
[1758149477515,1e-08,244.75,244.74,77.25969576]
[1758149477719,1e-08,244.75,244.74,51.5440189]
[1758149479128,0.68000001,244.75,244.74,18.99969576]
[1758149479339,0.68000001,244.75,244.74,51.25969576]
[1758149482119,0.06,244.78,244.77,26.0]
[1758149482321,0.06,244.78,244.77,60.88454104]
[1758149483322,0.06,244.78,244.77,64.96837836]
[1758149484120,0.06,244.78,244.77,69.05384635]
[1758149484634,0.74,244.78,244.77,69.05384635]
[1758149485111,0.06,244.78,244.77,69.05384635]
[1758149485316,0.74,244.78,244.77,69.05384635]
[1758149488217,0.06,244.78,244.77,69.05384635]
[1758149488418,0.06,244.78,244.77,66.40930531]
[1758149488715,0.06,244.78,244.77,69.05384635]
[1758149493137,0.76,244.78,244.77,66.40930531]
[1758149493348,0.76,244.78,244.77,58.22]
[1758149493539,0.76,244.78,244.77,60.86454104]
[1758149494043,0.76,244.78,244.77,64.95000903]
[1758149494226,0.06,244.78,244.77,62.30546799]
[1758149494419,0.06,244.78,244.77,67.59455007]
[1758149494847,0.76,244.78,244.77,35.37455007]
[1758149495043,0.76,244.78,244.77,64.95000903]
[1758149495652,0.06,244.78,244.77,65.67000903]
[1758149495836,0.06,244.78,244.77,65.95433217]
[1758149496145,1e-08,244.78,244.77,79.95847297]
[1758149496449,1e-08,244.78,244.77,84.23857102]
[1758149498343,1e-08,244.8,244.77,94.45224099]
[1758149498552,1e-08,244.81,244.8,13.87991715]
[1758149498728,1e-08,244.81,244.8,51.79749596]
[1758149498930,1e-08,244.81,244.8,52.51749596]
[1758149500430,1e-08,244.81,244.8,56.60246328]
[1758149502649,1e-08,244.81,244.8,21.01792224]
[1758149502847,0.70000001,244.81,244.8,6.87166993]
[1758149503052,0.70000001,244.81,244.8,38.92950836]
[1758149503231,0.70000001,244.81,244.8,39.07166993]
[1758149503557,1e-08,244.81,244.8,39.2138315]
[1758149504144,1e-08,244.81,244.8,118.1138315]
[1758149504652,1e-08,244.81,244.8,120.75837254]
[1758149506447,1e-08,244.81,244.8,88.55837254]
[1758149506648,1e-08,244.81,244.8,120.75837254]
[1758149508765,1e-08,244.81,244.8,88.55837254]
[1758149509054,1e-08,244.81,244.8,120.75837254]
[1758149510051,0.70000001,244.81,244.8,6.72950836]
[1758149510357,0.70000001,244.81,244.8,38.92950836]
[1758149510530,0.70000001,244.81,244.8,41.5740494]
[1758149511055,1e-08,244.81,244.8,41.83837254]
[1758149511834,1e-08,244.81,244.8,42.55837254]
[1758149512034,1e-08,244.81,244.8,45.20291358]
[1758149512346,1e-08,244.81,244.8,58.79850759]
[1758149512550,0.7,244.9,244.87,26.0]
[1758149512858,0.7,245.05,244.92,26.0]
[1758149513053,0.7,245.04,244.99,2.64454104]
[1758149513232,0.7,245.03,245.0,32.18]
[1758149513432,0.7,245.02,245.0,32.18]
[1758149513634,0.7,245.01,245.0,32.18]
[1758149514376,0.7,245.01,245.0,34.82454104]
[1758149514538,0.7,245.01,245.0,32.18]
[1758149514956,0.7,245.01,245.0,34.82454104]
[1758149515466,0.7,245.01,245.0,32.18]
[1758149516335,0.76,245.01,245.0,32.18]
[1758149518254,0.06,245.01,245.0,32.85]
[1758149518455,0.7,245.12,245.07,26.0]
[1758149518644,2.64454104,245.17,245.1,2.64454104]
[1758149518837,0.7,245.11,245.08,2.64454104]
[1758149519042,0.7,245.1,245.07,12.25415109]
[1758149519273,2.64454104,245.08,245.07,44.41415109]
[1758149519447,3.34454104,245.08,245.07,31.44]
[1758149519760,2.38932874,245.08,244.99,39.94347983]
[1758149519940,1.68932874,245.04,244.99,12.25415109]
[1758149520135,0.7,245.03,245.0,32.16]
[1758149520362,0.7,245.02,245.0,32.16]
[1758149520952,0.7,245.06,245.0,37.9309083]
[1758149521261,0.7,245.06,245.0,5.7709083]
[1758149521458,0.7,245.05,245.01,32.16]
[1758149521758,0.7,245.04,245.02,32.16]
[1758149521965,1.68932874,245.06,245.03,32.16]
[1758149522161,1.68932874,245.07,245.03,32.16]
[1758149522361,1.68932874,245.06,245.03,32.16]
[1758149522566,0.66,245.05,245.03,32.16]
[1758149522863,0.66,245.04,245.03,32.16]
[1758149523867,1.68932874,245.07,245.03,32.16]
[1758149523868,0.66,245.07,245.03,32.16]
[1758149524438,0.66,245.1,245.03,33.84932874]
[1758149524642,0.66,245.1,245.03,38.60041188]
[1758149524862,0.66,245.1,245.03,2.35932874]
[1758149525369,0.66,245.1,245.04,32.16]
[1758149525950,1.68932874,245.12,245.05,2.35932874]
[1758149526349,2.34932874,245.13,245.05,6.44009221]
[1758149526571,0.66,245.15,245.06,2.35932874]
[1758149526766,2.34932874,245.14,245.07,32.14]
[1758149526971,0.66,245.14,245.08,2.35932874]
[1758149527268,4.73902656,245.16,245.08,2.35932874]
[1758149527562,1.68932874,245.15,245.08,2.35932874]
[1758149528156,2.34932874,245.15,245.08,2.35932874]
[1758149528540,2.34932874,245.15,245.08,6.43957021]
[1758149528961,1.68932874,245.17,245.09,0.67]
[1758149529154,1.68932874,245.17,245.1,58.14]
[1758149529352,1.68932874,245.2,245.13,1.68932874]
[1758149529566,6.49754863,245.21,245.14,33.82932874]
[1758149529781,1.68932874,245.2,245.14,32.14]
[1758149529983,1.68932874,245.19,245.13,0.67]
[1758149530145,0.66,245.2,245.14,32.14]
[1758149530347,1.68932874,245.2,245.14,32.14]
[1758149530564,1.68932874,245.18,245.15,32.14]
[1758149530871,0.66,245.17,245.11,26.0]
[1758149531052,1.68932874,245.15,245.12,32.14]
[1758149531254,2.34932874,245.14,245.13,32.14]
[1758149531559,1.68932874,245.19,245.13,32.81]
[1758149531757,0.66,245.19,245.14,32.14]
[1758149531954,4.14823527,245.21,245.14,32.14]
[1758149532156,4.73853695,245.19,245.14,32.14]
[1758149532468,2.41936572,245.21,245.15,0.67]
[1758149532665,6.49758439,245.21,245.14,32.14]
[1758149532969,0.66,245.2,245.14,32.14]
[1758149533143,0.66,245.2,245.15,32.14]
[1758149533348,0.73003698,245.21,245.16,32.14]
[1758149533657,0.73003698,245.21,245.17,32.14]
[1758149533964,0.66,245.2,245.17,32.14]
[1758149534858,0.07003698,245.21,245.17,32.14]
[1758149535066,0.73003698,245.21,245.17,32.14]
[1758149535254,0.07003698,245.21,245.18,0.67]
[1758149535454,0.06,245.2,245.19,0.67]
[1758149535745,0.06,245.2,245.17,12.24964783]
[1758149535951,0.06,245.2,245.18,32.79]
[1758149536152,0.06,245.2,245.19,32.12]
[1758149536553,0.06,245.2,245.18,0.67]
[1758149536774,0.06,245.2,245.19,0.67]
[1758149536979,0.06,245.2,245.19,34.47932874]
[1758149538569,0.06,245.2,245.19,2.35932874]
[1758149538787,0.06,245.2,245.19,0.67]
[1758149538952,23.598,245.31,245.29,13.59559401]
[1758149539151,21.728,245.31,245.3,46.55991715]
[1758149539451,0.66,245.43,245.33,26.0]
[1758149539667,0.66,245.43,245.35,0.28432314]
[1758149539974,33.78091573,245.51,245.28,0.40769732]
[1758149539975,0.66,245.42,245.28,0.40769732]
[1758149540149,0.66,245.42,245.16,19.00746298]
[1758149540150,23.598,245.51,245.23,20.38902255]
[1758149540348,23.598,245.51,245.36,0.14216157]
[1758149540349,1.68932874,245.46,245.36,0.14216157]
[1758149540557,0.66,245.5,245.38,1.68932874]
[1758149540558,0.66,245.45,245.38,1.68932874]
[1758149540779,0.66,245.44,245.38,1.68932874]
[1758149540960,13.59559401,245.49,245.37,1.68932874]
[1758149541157,1.68932874,245.38,245.36,33.72]
[1758149541376,14.25661913,245.5,245.24,0.40776382]
[1758149541377,2.34932874,245.37,245.24,0.40776382]
[1758149541584,26.0,245.37,245.21,85.05902394]
[1758149541879,0.28432314,245.42,245.21,85.05902394]
[1758149541880,0.66,245.4,245.33,1.68932874]
[1758149542061,0.66,245.39,245.34,33.74]
[1758149542259,4.73547069,245.38,245.31,1.68932874]
[1758149542583,0.66,245.37,245.32,33.76]
[1758149542792,0.66,245.36,245.32,33.76]
[1758149542971,0.66,245.35,245.32,33.76]
[1758149543168,0.66,245.39,245.32,33.76]
[1758149543494,2.34932874,245.39,245.32,35.44932874]
[1758149543692,0.66,245.39,245.33,1.68932874]
[1758149543869,4.07452753,245.43,245.34,4.3867651]
[1758149544073,0.66,245.42,245.35,38.1067651]
[1758149544258,4.3867651,245.4,245.3,0.69198722]
[1758149544575,4.3867651,245.38,245.31,38.1267651]
[1758149544774,4.3867651,245.36,245.26,12.47415169]
[1758149544973,4.3867651,245.34,245.27,38.1467651]
[1758149545284,4.3867651,245.32,245.28,33.76]
[1758149545462,0.66,245.31,245.28,33.76]
[1758149545666,26.0,245.38,245.28,38.1467651]
[1758149545667,0.66,245.34,245.28,38.1467651]
[1758149545981,4.3867651,245.36,245.28,38.1467651]
[1758149546185,0.66,245.35,245.3,0.5]
[1758149546486,9.12274129,245.34,245.3,34.26]
[1758149546688,4.3867651,245.32,245.24,4.3867651]
[1758149546983,5.0467651,245.31,245.25,33.76]
[1758149547153,0.66,245.31,245.24,26.0]
[1758149547356,0.66,245.31,245.26,33.74]
[1758149547557,4.07573917,245.36,245.26,33.74]
[1758149547757,0.66,245.34,245.27,4.3867651]
[1758149547962,0.66,245.34,245.28,4.3867651]
[1758149548359,4.07614233,245.33,245.26,4.3867651]
[1758149548572,4.07614233,245.33,245.27,33.72]
[1758149548761,4.3867651,245.3,245.22,26.0]
[1758149549068,0.66,245.3,245.24,4.3867651]
[1758149549386,0.66,245.33,245.26,4.3867651]
[1758149549572,5.0467651,245.33,245.26,4.3867651]
[1758149549773,0.66,245.33,245.26,4.3867651]
[1758149549961,5.0467651,245.33,245.26,4.3867651]
[1758149550166,4.07591574,245.35,245.26,26.0]
[1758149550391,4.73597619,245.34,245.26,26.0]
[1758149550561,4.73597619,245.34,245.28,4.3867651]
[1758149551381,0.66,245.38,245.32,4.3867651]
[1758149551577,4.07483866,245.41,245.34,4.3867651]
[1758149551765,4.3867651,245.41,245.35,33.7]
[1758149552370,4.3867651,245.41,245.27,0.54987551]
[1758149552371,4.3867651,245.39,245.32,4.3867651]
[1758149552677,4.3867651,245.33,245.21,85.20118551]
[1758149552864,5.0967651,245.32,245.25,4.3867651]
[1758149553070,5.0967651,245.32,245.24,33.68]
[1758149553071,0.71,245.32,245.26,4.3867651]
[1758149553486,5.0967651,245.32,245.26,4.3867651]
[1758149553774,0.71,245.32,245.27,33.7]
[1758149553969,4.3867651,245.33,245.27,33.7]
[1758149554358,4.07630849,245.32,245.27,33.7]
[1758149554558,0.71,245.31,245.27,33.7]
[1758149554971,0.71,245.3,245.24,30.3867651]
[1758149555165,5.0967651,245.3,245.24,26.0]
[1758149555380,5.0967651,245.3,245.25,33.66]
[1758149555754,0.71,245.3,245.25,33.66]
[1758149555960,0.71,245.3,245.25,38.0467651]
[1758149556180,18.65384482,245.32,245.25,38.0467651]